[Event "Commonwealth Open 2019"]
[Site "Delhi"]
[Date "2019.06.30"]
[Round "2.16"]
[White "Kumar, Gaurav"]
[Black "Shyaamnikhil P"]
[Result "1/2-1/2"]
[ECO "B28"]
[WhiteElo "2082"]
[BlackElo "2434"]
[Annotator "NA"]
[PlyCount "86"]
[EventDate "2019.06.30"]
[EventType "swiss"]
[EventCountry "IND"]
[SourceTitle "playchess.com"]
[Source "ChessBase"]
[SourceQuality "1"]
[TimeControl "5400+30"]

1. e4 {[%emt 0:00:00]} c5 {[%emt 0:00:08]} 2. Nf3 {[%emt 0:00:00]} a6 {[%emt 0:00:07]} 3. Nc3 {[%emt 0:00:38]} b5 {[%emt 0:00:48]} 4. d4 {[%emt 0:01:29]} cxd4 {[%emt 0:00:23]} 5. Nxd4 {[%emt 0:00:02]} Bb7 {[%emt 0:00:33]} 6. Bd3 {[%emt 0:04:07]} Nc6 {[%emt 0:04:41]} 7. Be3 {[%emt 0:02:02]} e6 {[%emt 0:03:15]} 8. O-O {[%emt 0:00:40]} Nf6 {[%emt 0:02:44]} 9. a3 {[%emt 0:15:14]} h5 {[%emt 0:06:28]} 10. h3 {[%emt 0:00:33]} Qc7 {[%emt 0:01:02]} 11. Nxc6 {[%emt 0:07:37]} Bxc6 {[%emt 0:05:29]} 12. f4 {[%emt 0:11:57]} Qb7 {[%emt 0:03:03]} 13. e5 {[%emt 0:01:25]} Nd5 {[%emt 0:00:18]} 14. Nxd5 {[%emt 0:00:06]} Bxd5 {[%emt 0:00:04]} 15. Qe2 {[%emt 0:00:09]} g6 {[%emt 0:00:58]} 16. Rac1 {[%emt 0:06:10]} Be7 {[%emt 0:02:28]} 17. c4 {[%emt 0:02:49]} bxc4 {[%emt 0:00:06]} 18. Bxc4 {[%emt 0:00:02]} Bc6 {[%emt 0:00:09]} 19. Rc3 {[%emt 0:01:37]} O-O {[%emt 0:00:15]} 20. Rb3 {[%emt 0:00:03]} Qc8 {[%emt 0:00:12]} 21. Rc1 {[%emt 0:00:19]} a5 {[%emt 0:03:02]} 22. Bb5 {[%emt 0:02:43]} a4 {[%emt 0:02:23]} 23. Rbc3 {[%emt 0:03:34]} Bxb5 {[%emt 0:03:21]} 24. Qxb5 {[%emt 0:00:09]} Qe8 {[%emt 0:00:20]} 25. Rc7 {[%emt 0:08:10]} d5 {[%emt 0:02:51]} 26. Qb7 {[%emt 0:00:27]} Rb8 {[%emt 0:03:41]} 27. Qa7 {[%emt 0:00:02]} Bh4 {[%emt 0:01:50]} 28. Bc5 {[%emt 0:00:39]} Ra8 {[%emt 0:01:43]} 29. Qb7 {[%emt 0:15:17]} Rb8 {[%emt 0:00:26]} 30. Qa7 {[%emt 0:08:37]} Ra8 {[%emt 0:00:15]} 31. Qxa8 {[%emt 0:04:53]} Qxa8 {[%emt 0:00:32]} 32. Bxf8 {[%emt 0:00:02]} Qxf8 {[%emt 0:01:58]} 33. Rc8 {[%emt 0:00:01]} Bd8 {[%emt 0:00:10]} 34. Rb8 {[%emt 0:00:04]} Kg7 {[%emt 0:00:27]} 35. Rcc8 {[%emt 0:00:17]} g5 {[%emt 0:00:07]} 36. fxg5 {[%emt 0:01:28]} Kg6 {[%emt 0:00:58]} 37. Rxd8 {[%emt 0:00:38]} Qc5+ {[%emt 0:00:07]} 38. Kh2 {[%emt 0:00:09]} d4 {[%emt 0:01:22]} 39. Rg8+ {[%emt 0:00:33]} Kf5 {[%emt 0:00:08]} 40. Rbf8 {[%emt 0:01:14]} Qxe5+ {[%emt 0:00:21]} 41. Kh1 {[%emt 0:00:25]} Qe1+ {[%emt 0:02:48]} 42. Kh2 {[%emt 0:00:01]} Qe5+ {[%emt 0:00:08]} 43. Kh1 {[%emt 0:00:06]} Qe1+ {[%emt 0:00:32]} 1/2-1/2

[Event "Commonwealth Open 2019"]
[Site "Delhi"]
[Date "2019.06.30"]
[Round "2.17"]
[White "Sri Sai Baswanth P"]
[Black "Thipsay, Praveen M"]
[Result "0-1"]
[ECO "C45"]
[WhiteElo "2065"]
[BlackElo "2405"]
[Annotator "NA"]
[PlyCount "62"]
[EventDate "2019.06.30"]
[EventType "swiss"]
[EventCountry "IND"]
[SourceTitle "playchess.com"]
[Source "ChessBase"]
[SourceQuality "1"]
[TimeControl "5400+30"]

1. e4 {[%emt 0:01:44]} e5 {[%emt 0:00:00]} 2. Nf3 {[%emt 0:00:15]} Nc6 {[%emt 0:00:00]} 3. d4 {[%emt 0:00:17]} exd4 {[%emt 0:00:36]} 4. Nxd4 {[%emt 0:00:08]} Bc5 {[%emt 0:00:49]} 5. Nb3 {[%emt 0:00:15]} Bb6 {[%emt 0:00:08]} 6. Nc3 {[%emt 0:00:17]} Nge7 {[%emt 0:01:11]} 7. Bg5 {[%emt 0:00:50]} O-O {[%emt 0:01:43]} 8. Qd2 {[%emt 0:01:25]} d6 {[%emt 0:03:49]} 9. O-O-O {[%emt 0:03:14]} a5 {[%emt 0:26:54]} 10. a4 {[%emt 0:05:35]} f6 {[%emt 0:00:12]} 11. Be3 {[%emt 0:00:52]} Bxe3 {[%emt 0:00:38]} 12. Qxe3 {[%emt 0:00:10]} Be6 {[%emt 0:02:21]} 13. f3 {[%emt 0:01:38]} Qc8 {[%emt 0:01:51]} 14. g4 {[%emt 0:02:27]} Qe8 {[%emt 0:04:42]} 15. Nb5 {[%emt 0:02:46]} Rc8 {[%emt 0:01:05]} 16. h3 {[%emt 0:03:34]} Bf7 {[%emt 0:01:06]} 17. f4 {[%emt 0:03:51]} d5 {[%emt 0:03:29]} 18. Bg2 {[%emt 0:01:24]} dxe4 {[%emt 0:09:10]} 19. Qxe4 {[%emt 0:04:29]} Ng6 {[%emt 0:06:05]} 20. f5 {[%emt 0:13:46]} Nge5 21. Rhe1 {[%emt 0:05:13]} Qe7 {[%emt 0:07:49]} 22. Rd2 {[%emt 0:10:16]} Bxb3 {[%emt 0:21:08]} 23. cxb3 {[%emt 0:00:06]} Nb4 {[%emt 0:00:03]} 24. Red1 {[%emt 0:01:08]} Rcd8 {[%emt 0:01:55]} 25. Rxd8 {[%emt 0:01:33]} Rxd8 {[%emt 0:00:05]} 26. Rxd8+ {[%emt 0:00:31]} Qxd8 {[%emt 0:00:05]} 27. Qxb7 {[%emt 0:03:53]} c6 {[%emt 0:02:15]} 28. Nc7 {[%emt 0:01:34]} Ned3+ {[%emt 0:01:39]} 29. Kb1 {[%emt 0:02:46]} Nf4 {[%emt 0:00:05]} 30. Bd5+ {[%emt 0:02:18]} Nfxd5 {[%emt 0:00:18]} 31. Ne6 {[%emt 0:00:19]} Nc3+ {[%emt 0:00:05]} 0-1

[Event "Commonwealth Open 2019"]
[Site "Delhi"]
[Date "2019.06.30"]
[Round "2.18"]
[White "Patil Harshal"]
[Black "Nitin, S.."]
[Result "0-1"]
[ECO "A05"]
[WhiteElo "1809"]
[BlackElo "2398"]
[Annotator "NA"]
[PlyCount "62"]
[EventDate "2019.06.30"]
[EventType "swiss"]
[EventCountry "IND"]
[SourceTitle "playchess.com"]
[Source "ChessBase"]
[SourceQuality "1"]
[TimeControl "5400+30"]

1. Nf3 {[%emt 0:05:12]} Nf6 {[%emt 0:00:09]} 2. g3 {[%emt 0:00:30]} g6 {[%emt 0:00:11]} 3. Bg2 {[%emt 0:00:00]} Bg7 {[%emt 0:00:09]} 4. O-O {[%emt 0:00:17]} O-O {[%emt 0:00:09]} 5. d3 {[%emt 0:04:18]} d5 {[%emt 0:00:12]} 6. c4 {[%emt 0:02:04]} Nc6 {[%emt 0:06:11]} 7. a3 {[%emt 0:05:12]} e5 {[%emt 0:02:47]} 8. Bg5 {[%emt 0:02:32]} dxc4 {[%emt 0:02:11]} 9. dxc4 {[%emt 0:00:34]} Be6 {[%emt 0:02:27]} 10. Qa4 {[%emt 0:06:14]} Qe8 {[%emt 0:04:27]} 11. Nc3 {[%emt 0:03:00]} Nd7 {[%emt 0:01:16]} 12. Nd5 {[%emt 0:04:19]} Nb6 {[%emt 0:09:59]} 13. Qd1 {[%emt 0:10:43]} Qc8 {[%emt 0:00:30]} 14. Nd2 {[%emt 0:05:45]} f6 {[%emt 0:03:19]} 15. Be3 {[%emt 0:00:25]} f5 {[%emt 0:01:47]} 16. Qc2 {[%emt 0:05:51]} Rf7 {[%emt 0:04:02]} 17. Nb3 {[%emt 0:04:21]} f4 {[%emt 0:07:01]} 18. Bxb6 {[%emt 0:03:32]} axb6 {[%emt 0:01:36]} 19. Rfd1 {[%emt 0:01:01]} Qf8 {[%emt 0:03:17]} 20. c5 {[%emt 0:03:44]} b5 {[%emt 0:01:31]} 21. Nb4 {[%emt 0:05:34]} fxg3 {[%emt 0:01:36]} 22. fxg3 {[%emt 0:00:24]} Bh6 {[%emt 0:06:05]} 23. Kh1 {[%emt 0:04:53]} Rf2 {[%emt 0:02:53]} 24. Rf1 {[%emt 0:02:01]} Nxb4 {[%emt 0:01:07]} 25. axb4 {[%emt 0:00:52]} Rxa1 {[%emt 0:00:10]} 26. Rxa1 {[%emt 0:00:16]} Qf7 {[%emt 0:00:49]} 27. Rd1 {[%emt 0:04:30]} Bxb3 {[%emt 0:02:09]} 28. Qxb3 {[%emt 0:00:08]} Qxb3 {[%emt 0:00:07]} 29. Bd5+ {[%emt 0:00:05]} Qxd5+ {[%emt 0:00:06]} 30. Rxd5 {[%emt 0:00:05]} Rxe2 {[%emt 0:00:21]} 31. Rd7 {[%emt 0:00:23]} c6 {[%emt 0:00:17]} 0-1

[Event "Commonwealth Open 2019"]
[Site "Delhi"]
[Date "2019.06.30"]
[Round "2.19"]
[White "Rathnakaran, K.."]
[Black "du Plessis, Jan"]
[Result "1-0"]
[ECO "B01"]
[WhiteElo "2338"]
[BlackElo "1631"]
[Annotator "NA"]
[PlyCount "49"]
[EventDate "2019.06.30"]
[EventType "swiss"]
[EventCountry "IND"]
[SourceTitle "playchess.com"]
[Source "ChessBase"]
[SourceQuality "1"]
[TimeControl "5400+30"]

1. e4 {[%emt 0:00:00]} d5 {[%emt 0:00:00]} 2. exd5 {[%emt 0:00:00]} Qxd5 {[%emt 0:00:00]} 3. Nc3 {[%emt 0:00:00]} Qd6 {[%emt 0:00:00]} 4. Nf3 {[%emt 0:00:00]} Nf6 {[%emt 0:00:02]} 5. Be2 {[%emt 0:00:04]} c6 {[%emt 0:00:17]} 6. d4 {[%emt 0:00:11]} Bf5 {[%emt 0:01:39]} 7. Bg5 {[%emt 0:00:08]} Nbd7 {[%emt 0:00:45]} 8. Qd2 {[%emt 0:00:08]} Qc7 {[%emt 0:01:12]} 9. Bf4 {[%emt 0:00:11]} Qd8 {[%emt 0:00:16]} 10. d5 {[%emt 0:00:48]} Ne4 {[%emt 0:02:10]} 11. Nxe4 {[%emt 0:00:32]} Bxe4 {[%emt 0:00:11]} 12. dxc6 {[%emt 0:00:03]} Bxc6 {[%emt 0:00:07]} 13. O-O {[%emt 0:00:05]} e6 {[%emt 0:01:14]} 14. Rad1 {[%emt 0:00:14]} Be7 {[%emt 0:01:15]} 15. Nd4 {[%emt 0:00:38]} Be4 {[%emt 0:03:46]} 16. Qe3 {[%emt 0:00:29]} Bg6 {[%emt 0:01:23]} 17. Bb5 {[%emt 0:00:06]} a6 {[%emt 0:02:10]} 18. Nxe6 {[%emt 0:00:41]} fxe6 {[%emt 0:01:33]} 19. Bxd7+ {[%emt 0:00:06]} Qxd7 {[%emt 0:02:52]} 20. Rxd7 {[%emt 0:00:04]} Kxd7 {[%emt 0:00:18]} 21. Rd1+ {[%emt 0:00:06]} Ke8 {[%emt 0:00:30]} 22. Qxe6 {[%emt 0:00:06]} Rf8 {[%emt 0:01:25]} 23. Re1 {[%emt 0:00:12]} Rf7 {[%emt 0:00:31]} 24. Bg5 {[%emt 0:00:13]} Rd8 {[%emt 0:01:28]} 25. Bxe7 {[%emt 0:00:09]} 1-0

[Event "Commonwealth Open 2019"]
[Site "Delhi"]
[Date "2019.06.30"]
[Round "2.20"]
[White "Lim, Kian Hwa"]
[Black "Vaishali R"]
[Result "0-1"]
[ECO "C60"]
[WhiteElo "1644"]
[BlackElo "2338"]
[Annotator "NA"]
[PlyCount "68"]
[EventDate "2019.06.30"]
[EventType "swiss"]
[EventCountry "IND"]
[SourceTitle "playchess.com"]
[Source "ChessBase"]
[SourceQuality "1"]
[TimeControl "5400+30"]

1. e4 {[%emt 0:00:00]} e5 {[%emt 0:02:51]} 2. Nf3 {[%emt 0:00:00]} Nc6 {[%emt 0:00:15]} 3. Bb5 {[%emt 0:00:00]} g6 {[%emt 0:00:14]} 4. d3 {[%emt 0:00:56]} Bg7 {[%emt 0:00:07]} 5. c3 {[%emt 0:00:46]} Nge7 {[%emt 0:02:59]} 6. O-O {[%emt 0:01:30]} O-O {[%emt 0:00:14]} 7. Nbd2 {[%emt 0:01:22]} d6 {[%emt 0:02:48]} 8. Re1 {[%emt 0:00:37]} a6 {[%emt 0:00:36]} 9. Ba4 {[%emt 0:00:09]} h6 {[%emt 0:03:20]} 10. Nf1 {[%emt 0:00:53]} f5 {[%emt 0:08:50]} 11. exf5 gxf5 {[%emt 0:00:45]} 12. Ng3 {[%emt 0:05:06]} Qe8 {[%emt 0:07:34]} 13. Nh4 {[%emt 0:05:26]} f4 {[%emt 0:09:12]} 14. Nh5 {[%emt 0:06:38]} Ng6 {[%emt 0:01:18]} 15. Bb3+ {[%emt 0:10:21]} Kh8 {[%emt 0:02:42]} 16. Nxg7 {[%emt 0:02:13]} Kxg7 {[%emt 0:00:08]} 17. Nxg6 Qxg6 {[%emt 0:00:07]} 18. Bd5 {[%emt 0:03:43]} Bh3 {[%emt 0:12:11]} 19. Kh1 {[%emt 0:02:45]} Bf5 {[%emt 0:02:44]} 20. Be4 {[%emt 0:01:50]} Bxe4 {[%emt 0:03:34]} 21. dxe4 {[%emt 0:00:10]} Kh7 {[%emt 0:01:38]} 22. f3 {[%emt 0:01:14]} Rg8 {[%emt 0:00:44]} 23. Rg1 {[%emt 0:00:32]} Qh5 {[%emt 0:01:43]} 24. Bd2 {[%emt 0:04:00]} Rg5 {[%emt 0:02:29]} 25. h3 {[%emt 0:00:34]} Rag8 {[%emt 0:02:40]} 26. Qe2 {[%emt 0:01:12]} Nd8 {[%emt 0:04:09]} 27. Raf1 {[%emt 0:03:08]} Ne6 {[%emt 0:01:00]} 28. Be1 {[%emt 0:06:34]} R5g6 {[%emt 0:02:20]} 29. Qf2 {[%emt 0:02:21]} Rg3 {[%emt 0:00:41]} 30. Qe2 {[%emt 0:00:35]} Ng5 31. Bxg3 {[%emt 0:15:29]} fxg3 {[%emt 0:01:44]} 32. Qc4 {[%emt 0:00:47]} Nxh3 {[%emt 0:00:23]} 33. Qf7+ {[%emt 0:00:34]} Qxf7 {[%emt 0:00:07]} 34. gxh3 {[%emt 0:00:20]} Qc4 {[%emt 0:00:56]} 0-1

[Event "Commonwealth Open 2019"]
[Site "Delhi"]
[Date "2019.06.30"]
[Round "2.21"]
[White "Jigna, Joshi"]
[Black "Sangma, Rahul"]
[Result "0-1"]
[ECO "C53"]
[WhiteElo "1405"]
[BlackElo "2298"]
[Annotator "NA"]
[PlyCount "58"]
[EventDate "2019.06.30"]
[EventType "swiss"]
[EventCountry "IND"]
[SourceTitle "playchess.com"]
[Source "ChessBase"]
[SourceQuality "1"]
[TimeControl "5400+30"]

1. e4 {[%emt 0:00:00]} e5 {[%emt 0:00:00]} 2. Nf3 {[%emt 0:00:00]} Nc6 {[%emt 0:00:00]} 3. Bc4 {[%emt 0:00:00]} Bc5 {[%emt 0:00:00]} 4. c3 {[%emt 0:00:00]} Qf6 {[%emt 0:00:43]} 5. d3 {[%emt 0:01:26]} d6 {[%emt 0:00:17]} 6. Be3 {[%emt 0:01:31]} Nge7 {[%emt 0:01:20]} 7. b4 {[%emt 0:04:06]} Bb6 {[%emt 0:02:17]} 8. a4 {[%emt 0:00:45]} a5 {[%emt 0:03:14]} 9. Bxb6 {[%emt 0:01:00]} cxb6 {[%emt 0:00:03]} 10. b5 {[%emt 0:00:23]} Nd8 {[%emt 0:00:40]} 11. Nbd2 {[%emt 0:02:48]} Ne6 {[%emt 0:02:28]} 12. g3 {[%emt 0:03:23]} O-O {[%emt 0:01:02]} 13. h4 {[%emt 0:07:17]} Qh6 {[%emt 0:07:20]} 14. Qe2 {[%emt 0:04:10]} Kh8 {[%emt 0:01:14]} 15. Nf1 {[%emt 0:01:40]} f5 {[%emt 0:01:02]} 16. N1h2 {[%emt 0:08:36]} Bd7 {[%emt 0:04:44]} 17. Qd2 {[%emt 0:09:10]} Qg6 {[%emt 0:05:01]} 18. exf5 {[%emt 0:12:26]} Rxf5 {[%emt 0:03:51]} 19. Qe3 {[%emt 0:11:29]} d5 {[%emt 0:07:25]} 20. Bb3 {[%emt 0:00:25]} Nc5 {[%emt 0:00:08]} 21. Bc2 {[%emt 0:00:42]} d4 {[%emt 0:01:50]} 22. cxd4 {[%emt 0:01:01]} Nd5 {[%emt 0:03:50]} 23. Qd2 {[%emt 0:03:54]} exd4 {[%emt 0:00:33]} 24. O-O-O {[%emt 0:03:13]} Raf8 {[%emt 0:02:40]} 25. Nxd4 {[%emt 0:06:33]} Qf6 {[%emt 0:01:20]} 26. Nb3 {[%emt 0:05:22]} Rxf2 {[%emt 0:02:33]} 27. Qxf2 {[%emt 0:02:54]} Nxb3+ {[%emt 0:00:47]} 28. Bxb3 {[%emt 0:00:27]} Qa1+ {[%emt 0:00:08]} 29. Kd2 {[%emt 0:00:26]} Qb2+ {[%emt 0:00:14]} 0-1

[Event "Commonwealth Open 2019"]
[Site "Delhi"]
[Date "2019.06.30"]
[Round "2.22"]
[White "Divya Deshmukh"]
[Black "Ashutosh Jamwal"]
[Result "1-0"]
[ECO "B00"]
[WhiteElo "2414"]
[BlackElo "1412"]
[Annotator "NA"]
[PlyCount "87"]
[EventDate "2019.06.30"]
[EventType "swiss"]
[EventCountry "IND"]
[SourceTitle "playchess.com"]
[Source "ChessBase"]
[SourceQuality "1"]
[TimeControl "5400+30"]

1. e4 {[%emt 0:00:00]} b6 {[%emt 0:00:39]} 2. d4 {[%emt 0:00:00]} Bb7 {[%emt 0:00:03]} 3. Bd3 {[%emt 0:00:00]} e6 {[%emt 0:00:37]} 4. Ne2 {[%emt 0:00:44]} Nf6 {[%emt 0:00:32]} 5. Ng3 {[%emt 0:00:09]} d5 {[%emt 0:04:57]} 6. e5 {[%emt 0:00:43]} Nfd7 {[%emt 0:01:00]} 7. c3 {[%emt 0:00:46]} c5 {[%emt 0:00:27]} 8. O-O {[%emt 0:00:17]} cxd4 {[%emt 0:02:52]} 9. cxd4 {[%emt 0:00:24]} Ba6 {[%emt 0:00:28]} 10. Bxa6 {[%emt 0:01:09]} Nxa6 {[%emt 0:00:03]} 11. Nc3 {[%emt 0:00:07]} Be7 {[%emt 0:11:03]} 12. Qg4 {[%emt 0:02:15]} g6 {[%emt 0:01:35]} 13. Bh6 {[%emt 0:00:05]} Nc7 {[%emt 0:04:53]} 14. Rac1 {[%emt 0:00:39]} Bf8 {[%emt 0:01:46]} 15. Bg5 {[%emt 0:02:20]} Be7 {[%emt 0:01:34]} 16. Bxe7 {[%emt 0:01:11]} Qxe7 {[%emt 0:01:28]} 17. Nce4 {[%emt 0:00:09]} Nb5 {[%emt 0:06:58]} 18. a4 {[%emt 0:00:33]} dxe4 {[%emt 0:02:52]} 19. Qxe4 {[%emt 0:03:06]} O-O {[%emt 0:00:30]} 20. axb5 {[%emt 0:00:30]} Rac8 {[%emt 0:00:30]} 21. Rc3 {[%emt 0:00:30]} Rxc3 {[%emt 0:00:30]} 22. bxc3 {[%emt 0:00:30]} f6 {[%emt 0:24:44]} 23. exf6 {[%emt 0:06:21]} Nxf6 {[%emt 0:00:14]} 24. Qe2 {[%emt 0:02:00]} Nd5 {[%emt 0:07:10]} 25. c4 {[%emt 0:01:05]} Nf4 {[%emt 0:01:58]} 26. Qe4 {[%emt 0:00:19]} Qf6 {[%emt 0:01:37]} 27. h3 {[%emt 0:03:12]} h5 {[%emt 0:04:07]} 28. Kh1 {[%emt 0:02:23]} h4 {[%emt 0:03:04]} 29. Ne2 {[%emt 0:00:05]} Nxe2 {[%emt 0:00:13]} 30. Qxe2 {[%emt 0:00:03]} Qxd4 {[%emt 0:00:44]} 31. Qxe6+ {[%emt 0:00:08]} Kg7 {[%emt 0:00:10]} 32. f3 {[%emt 0:00:29]} Qd3 {[%emt 0:01:17]} 33. Ra1 {[%emt 0:01:09]} Rf5 34. f4 Rxf4 {[%emt 0:03:12]} 35. Qe5+ {[%emt 0:00:54] Rf3 gxf3+} Kh6 {[%emt 0:07:26]} 36. Kg1 {[%emt 0:00:01]} Qf3 {[%emt 0:00:58]} 37. Ra2 {[%emt 0:00:06]} Qxh3 {[%emt 0:00:55]} 38. Rc2 Qg4 {[%emt 0:01:41] Rg2 Qd1+} 39. Kh2 {[%emt 1:10:46] Qd8} Qe6 {[%emt 0:01:00] Qd3} 40. Qf6 {[%emt 0:00:00]} Kh7 {[%emt 0:02:26]} 41. Qxh4+ {[%emt 0:00:00]} Kg7 {[%emt 0:00:03]} 42. Qxf4 {[%emt 0:00:00] Qd8 Re2} Kh8 {[%emt 0:01:58]} 43. Qh6+ {[%emt 0:00:00]} Kg8 {[%emt 0:00:03]} 44. Qxg6+ {[%emt 0:00:00]} 1-0

[Event "Commonwealth Open 2019"]
[Site "Delhi"]
[Date "2019.06.30"]
[Round "2.23"]
[White "Tania, Sachdev"]
[Black "Chudasama Ankit"]
[Result "1-0"]
[ECO "D37"]
[WhiteElo "2401"]
[BlackElo "1852"]
[Annotator "NA"]
[PlyCount "79"]
[EventDate "2019.06.30"]
[EventType "swiss"]
[EventCountry "IND"]
[SourceTitle "playchess.com"]
[Source "ChessBase"]
[SourceQuality "1"]
[TimeControl "5400+30"]

1. d4 {[%emt 0:00:53]} Nf6 {[%emt 0:00:12]} 2. c4 {[%emt 0:00:04]} e6 {[%emt 0:00:15]} 3. Nf3 {[%emt 0:00:15]} d5 {[%emt 0:00:08]} 4. Nc3 {[%emt 0:00:04]} Be7 {[%emt 0:00:37]} 5. Qc2 {[%emt 0:03:27]} O-O {[%emt 0:00:34]} 6. cxd5 {[%emt 0:01:15]} exd5 {[%emt 0:00:10]} 7. Bf4 {[%emt 0:00:56]} c5 {[%emt 0:02:46]} 8. e3 {[%emt 0:00:46]} a6 {[%emt 0:00:57]} 9. dxc5 {[%emt 0:04:11]} Bxc5 {[%emt 0:03:51]} 10. Rd1 {[%emt 0:03:20]} Qa5 {[%emt 0:00:30]} 11. a3 {[%emt 0:00:30]} Be7 {[%emt 0:00:30]} 12. h3 Nc6 {[%emt 0:09:43]} 13. Bd3 Ne4 {[%emt 0:04:34]} 14. O-O {[%emt 0:37:28]} Nxc3 {[%emt 0:22:31]} 15. bxc3 {[%emt 0:00:04]} h6 {[%emt 0:01:03]} 16. Ra1 {[%emt 0:05:01]} Be6 {[%emt 0:02:16]} 17. a4 {[%emt 0:02:44]} Rac8 {[%emt 0:03:05]} 18. Qb2 {[%emt 0:02:53]} Bf6 {[%emt 0:03:27]} 19. Rfc1 {[%emt 0:01:30]} Nd8 {[%emt 0:08:20]} 20. Nd4 {[%emt 0:05:50]} Re8 {[%emt 0:03:05]} 21. Bb1 {[%emt 0:04:01]} Bd7 {[%emt 0:01:54]} 22. Qc2 {[%emt 0:03:22]} Re4 {[%emt 0:09:30]} 23. Qd2 {[%emt 0:01:03]} Re8 {[%emt 0:03:02]} 24. Qd3 {[%emt 0:00:29]} Re4 {[%emt 0:02:45]} 25. f3 {[%emt 0:05:03]} Rxf4 {[%emt 0:00:10]} 26. exf4 {[%emt 0:00:15]} g6 {[%emt 0:04:26]} 27. Ba2 {[%emt 0:03:05]} Ne6 {[%emt 0:01:25]} 28. Ne2 {[%emt 0:03:10]} Bxa4 {[%emt 0:03:17]} 29. Bxd5 {[%emt 0:04:22]} Qb6+ {[%emt 0:00:27]} 30. Kh2 {[%emt 0:00:18]} Bb5 {[%emt 0:00:20]} 31. Qb1 {[%emt 0:05:14]} Qe3 {[%emt 0:02:41]} 32. Bxe6 {[%emt 0:00:13]} Qxe6 {[%emt 0:01:39]} 33. Nd4 {[%emt 0:00:01]} Qe3 {[%emt 0:00:49]} 34. Nxb5 {[%emt 0:01:29]} axb5 {[%emt 0:00:02]} 35. Qe4 {[%emt 0:01:34]} Qb6 {[%emt 0:04:30]} 36. Rab1 {[%emt 0:00:54]} Bxc3 {[%emt 0:01:48]} 37. Rb3 {[%emt 0:00:01]} b4 {[%emt 0:00:09]} 38. Rxb4 {[%emt 0:00:22]} Qf6 {[%emt 0:01:00]} 39. Rxb7 {[%emt 0:01:13]} Rc5 {[%emt 0:00:28]} 40. Qe8+ {[%emt 0:00:54]} 1-0

[Event "Commonwealth Open 2019"]
[Site "Delhi"]
[Date "2019.06.30"]
[Round "2.24"]
[White "Kulkarni Bhakti"]
[Black "Sudarshan Bhat"]
[Result "1-0"]
[ECO "E10"]
[WhiteElo "2380"]
[BlackElo "1835"]
[Annotator "NA"]
[PlyCount "35"]
[EventDate "2019.06.30"]
[EventType "swiss"]
[EventCountry "IND"]
[SourceTitle "playchess.com"]
[Source "ChessBase"]
[SourceQuality "1"]
[TimeControl "5400+30"]

1. d4 {[%emt 0:00:00]} Nf6 {[%emt 0:00:00]} 2. c4 {[%emt 0:01:40]} e6 {[%emt 0:02:59]} 3. Nf3 {[%emt 0:00:16]} c5 {[%emt 0:00:53]} 4. d5 {[%emt 0:00:30]} b5 {[%emt 0:00:30]} 5. Qc2 {[%emt 0:06:24]} exd5 {[%emt 0:14:32]} 6. cxd5 {[%emt 0:00:44]} g6 {[%emt 0:12:03]} 7. Bg5 {[%emt 0:05:14]} Bg7 {[%emt 0:01:38]} 8. Qxc5 {[%emt 0:04:26]} Ne4 {[%emt 0:14:22]} 9. Qe3 {[%emt 0:01:51]} Qa5+ {[%emt 0:02:53]} 10. Nbd2 {[%emt 0:28:06]} f5 {[%emt 0:01:15]} 11. g4 {[%emt 0:04:11]} O-O {[%emt 0:06:30]} 12. gxf5 {[%emt 0:01:42]} Nxg5 {[%emt 0:02:54]} 13. Nxg5 {[%emt 0:00:54]} Rxf5 {[%emt 0:01:39]} 14. Bh3 {[%emt 0:02:50]} Re5 {[%emt 0:03:39]} 15. Qf4 {[%emt 0:00:24]} Bb7 {[%emt 0:03:26]} 16. Qf7+ {[%emt 0:01:17]} Kh8 {[%emt 0:00:26]} 17. Ne6 {[%emt 0:00:49]} dxe6 {[%emt 0:05:22]} 18. Qe8+ {[%emt 0:00:05]} 1-0